[Event "Titled Tuesday Blitz August 31 2021"]
[White "Murzin, Volodar"]
[Black "Perez Gormaz, Matias"]
[WhiteFideId "44155573"]
[BlackFideId "3406342"]
[WhiteElo "2541"]
[BlackElo "2352"]
[Result "1-0"]
[Round "05"]
[TimeControl "180+1"]
[Date "2021.08.31"]
[WhiteClock "0:00:05"]
[BlackClock "0:00:05"]

1. e4 {[%clk 0:03:00]}  c5 {[%clk 0:03:00]} 2. Nf3 {[%clk 0:03:01]}  d6 {[%clk 0:03:00]} 3. Bb5+ {[%clk 0:02:57]}  Bd7 {[%clk 0:03:00]} 4. Bxd7+ {[%clk 0:02:56]}  Qxd7 {[%clk 0:03:01]} 5. O-O {[%clk 0:02:56]}  Nc6 {[%clk 0:03:02]} 6. c3 {[%clk 0:02:53]}  d5 {[%clk 0:03:02]} 7. exd5 {[%clk 0:02:38]}  Qxd5 {[%clk 0:03:03]} 8. d4 {[%clk 0:02:38]}  e6 {[%clk 0:03:04]} 9. dxc5 {[%clk 0:02:02]}  Qxd1 {[%clk 0:03:02]} 10. Rxd1 {[%clk 0:02:03]}  Bxc5 {[%clk 0:03:03]} 11. Nbd2 {[%clk 0:02:02]}  Nf6 {[%clk 0:03:02]} 12. Nc4 {[%clk 0:01:56]}  Nd5 {[%clk 0:02:35]} 13. Nfe5 {[%clk 0:01:42]}  Rc8 {[%clk 0:02:24]} 14. Nxc6 {[%clk 0:01:29]}  Rxc6 {[%clk 0:02:21]} 15. Ne5 {[%clk 0:01:29]}  Rc8 {[%clk 0:02:22]} 16. Nd3 {[%clk 0:01:20]}  Be7 {[%clk 0:02:17]} 17. Nf4 {[%clk 0:01:14]}  Nxf4 {[%clk 0:01:36]} 18. Bxf4 {[%clk 0:01:15]}  Rd8 {[%clk 0:01:32]} 19. Be3 {[%clk 0:01:08]}  b6 {[%clk 0:01:31]} 20. a4 {[%clk 0:01:05]}  Bc5 {[%clk 0:01:17]} 21. Bf4 {[%clk 0:00:41]}  a5 {[%clk 0:01:07]} 22. Kf1 {[%clk 0:00:39]}  Ke7 {[%clk 0:01:07]} 23. Ke2 {[%clk 0:00:38]}  f6 {[%clk 0:01:08]} 24. f3 {[%clk 0:00:35]}  e5 {[%clk 0:01:07]} 25. Bg3 {[%clk 0:00:33]}  Ke6 {[%clk 0:01:01]} 26. Be1 {[%clk 0:00:25]}  f5 {[%clk 0:00:57]} 27. Bh4 {[%clk 0:00:24]}  Rxd1 {[%clk 0:00:47]} 28. Rxd1 {[%clk 0:00:23]}  h6 {[%clk 0:00:46]} 29. Bd8 {[%clk 0:00:12]}  Bd6 {[%clk 0:00:29]} 30. Bxb6 {[%clk 0:00:07]}  Rb8 {[%clk 0:00:30]} 31. Bxa5 {[%clk 0:00:07]}  Rxb2+ {[%clk 0:00:31]} 32. Rd2 {[%clk 0:00:07]}  Rb8 {[%clk 0:00:31]} 33. Ra2 {[%clk 0:00:06]}  Kd5 {[%clk 0:00:28]} 34. Bb4 {[%clk 0:00:05]}  Bxb4 {[%clk 0:00:26]} 35. cxb4 {[%clk 0:00:06]}  Rxb4 {[%clk 0:00:26]} 36. a5 {[%clk 0:00:06]}  Rb7 {[%clk 0:00:26]} 37. a6 {[%clk 0:00:07]}  Ra7 {[%clk 0:00:26]} 38. Ra5+ {[%clk 0:00:07]}  Kd4 {[%clk 0:00:23]} 39. Ra4+ {[%clk 0:00:07]}  Kd5 {[%clk 0:00:24]} 40. Kd3 {[%clk 0:00:07]}  g5 {[%clk 0:00:18]} 41. Ra5+ {[%clk 0:00:06]}  Ke6 {[%clk 0:00:13]} 42. g4 {[%clk 0:00:06]}  e4+ {[%clk 0:00:05]} 43. Ke3 {[%clk 0:00:06]}  fxg4 {[%clk 0:00:03]} 44. fxg4 {[%clk 0:00:05]}  Kd6 {[%clk 0:00:03]} 45. Kxe4 {[%clk 0:00:06]}  Kc6 {[%clk 0:00:03]} 46. Kf5 {[%clk 0:00:06]}  Kb6 {[%clk 0:00:04]} 47. Ra4 {[%clk 0:00:05]}  Rxa6 {[%clk 0:00:04]} 48. Rxa6+ {[%clk 0:00:05]}  Kxa6 {[%clk 0:00:05]} 1-0


[Site "https://www.chess.com"]

[Event "Titled Tuesday Blitz August 31 2021"]
[White "Najdin, Danil"]
[Black "Harutjunyan, Gevorg"]
[WhiteFideId "4172426"]
[BlackFideId "13300873"]
[WhiteElo "2193"]
[BlackElo "2498"]
[Result "0-1"]
[Round "05"]
[TimeControl "180+1"]
[Date "2021.08.31"]
[WhiteClock "0:00:11"]
[BlackClock "0:00:26"]

1. e4 {[%clk 0:02:14]}  c6 {[%clk 0:02:59]} 2. d4 {[%clk 0:02:13]}  d5 {[%clk 0:03:00]} 3. exd5 {[%clk 0:02:13]}  cxd5 {[%clk 0:03:01]} 4. Bd3 {[%clk 0:02:14]}  Nf6 {[%clk 0:03:01]} 5. c3 {[%clk 0:02:12]}  Bg4 {[%clk 0:03:01]} 6. Qb3 {[%clk 0:02:08]}  Qc7 {[%clk 0:03:00]} 7. h3 {[%clk 0:01:56]}  Bh5 {[%clk 0:03:00]} 8. Ne2 {[%clk 0:01:56]}  Bg6 {[%clk 0:02:54]} 9. Bf4 {[%clk 0:01:54]}  Qd7 {[%clk 0:02:51]} 10. Bxg6 {[%clk 0:01:40]}  hxg6 {[%clk 0:02:52]} 11. Nd2 {[%clk 0:01:40]}  Nc6 {[%clk 0:02:52]} 12. Nf3 {[%clk 0:01:38]}  e6 {[%clk 0:02:51]} 13. Ne5 {[%clk 0:01:38]}  Nxe5 {[%clk 0:02:48]} 14. Bxe5 {[%clk 0:01:38]}  Bd6 {[%clk 0:02:43]} 15. Bxd6 {[%clk 0:01:31]}  Qxd6 {[%clk 0:02:42]} 16. Qxb7 {[%clk 0:01:26]}  Rb8 {[%clk 0:02:40]} 17. Qxa7 {[%clk 0:01:26]}  Rxb2 {[%clk 0:02:35]} 18. Qa8+ {[%clk 0:01:19]}  Qd8 {[%clk 0:01:45]} 19. Qa4+ {[%clk 0:01:19]}  Nd7 {[%clk 0:01:31]} 20. Qa3 {[%clk 0:01:17]}  Qb8 {[%clk 0:01:24]} 21. O-O-O {[%clk 0:00:53]}  Rxe2 {[%clk 0:01:21]} 22. Rd2 {[%clk 0:00:41]}  Rxd2 {[%clk 0:01:07]} 23. Kxd2 {[%clk 0:00:42]}  Nb6 {[%clk 0:00:54]} 24. Rb1 {[%clk 0:00:20]}  Nc4+ {[%clk 0:00:54]} 25. Ke2 {[%clk 0:00:20]}  Qxb1 {[%clk 0:00:53]} 26. Qa8+ {[%clk 0:00:20]}  Ke7 {[%clk 0:00:51]} 27. Qxh8 {[%clk 0:00:21]}  Qe4+ {[%clk 0:00:50]} 28. Kf1 {[%clk 0:00:18]}  Nd2+ {[%clk 0:00:37]} 29. Kg1 {[%clk 0:00:18]}  Qe1+ {[%clk 0:00:37]} 30. Kh2 {[%clk 0:00:19]}  Qxf2 {[%clk 0:00:35]} 31. Kh1 {[%clk 0:00:14]}  Qe1+ {[%clk 0:00:27]} 32. Kh2 {[%clk 0:00:14]}  Nf1+ {[%clk 0:00:27]} 33. Kg1 {[%clk 0:00:13]}  Ne3+ {[%clk 0:00:26]} 34. Kh2 {[%clk 0:00:11]}  Qf2 {[%clk 0:00:26]} 0-1


[Site "https://www.chess.com"]

[Event "Titled Tuesday Blitz August 31 2021"]
[White "Naroditsky, Daniel"]
[Black "Grachev, Boris"]
[WhiteFideId "2026961"]
[BlackFideId "4129199"]
[WhiteElo "2608"]
[BlackElo "2580"]
[Result "1/2-1/2"]
[Round "05"]
[TimeControl "180+1"]
[Date "2021.08.31"]
[WhiteClock "0:00:07"]
[BlackClock "0:00:08"]

1. b3 {[%clk 0:03:00]}  d5 {[%clk 0:02:59]} 2. Bb2 {[%clk 0:03:00]}  Bf5 {[%clk 0:02:59]} 3. d3 {[%clk 0:03:00]}  e6 {[%clk 0:03:00]} 4. Nd2 {[%clk 0:02:58]}  Nf6 {[%clk 0:02:58]} 5. g3 {[%clk 0:02:59]}  h6 {[%clk 0:02:58]} 6. Bg2 {[%clk 0:02:59]}  Bh7 {[%clk 0:02:58]} 7. e4 {[%clk 0:03:00]}  Be7 {[%clk 0:02:58]} 8. Qe2 {[%clk 0:02:58]}  O-O {[%clk 0:02:54]} 9. Ngf3 {[%clk 0:02:58]}  a5 {[%clk 0:02:54]} 10. a3 {[%clk 0:02:58]}  c5 {[%clk 0:02:52]} 11. O-O {[%clk 0:02:56]}  Nc6 {[%clk 0:02:51]} 12. Ne5 {[%clk 0:02:50]}  Nd4 {[%clk 0:02:47]} 13. Qd1 {[%clk 0:02:47]}  a4 {[%clk 0:02:41]} 14. b4 {[%clk 0:02:47]}  Nc6 {[%clk 0:02:29]} 15. b5 {[%clk 0:02:39]}  Nd4 {[%clk 0:02:20]} 16. exd5 {[%clk 0:02:25]}  exd5 {[%clk 0:02:20]} 17. c4 {[%clk 0:02:09]}  Bd6 {[%clk 0:02:19]} 18. f4 {[%clk 0:01:54]}  Re8 {[%clk 0:02:03]} 19. Bxd4 {[%clk 0:01:50]}  cxd4 {[%clk 0:02:02]} 20. Ndf3 {[%clk 0:01:51]}  dxc4 {[%clk 0:01:32]} 21. Nxc4 {[%clk 0:01:46]}  Ng4 {[%clk 0:01:31]} 22. Nfe5 {[%clk 0:01:32]}  Ne3 {[%clk 0:01:24]} 23. Nxe3 {[%clk 0:01:32]}  dxe3 {[%clk 0:01:25]} 24. d4 {[%clk 0:01:33]}  Qb6 {[%clk 0:01:16]} 25. Kh1 {[%clk 0:01:16]}  Bxe5 {[%clk 0:01:14]} 26. fxe5 {[%clk 0:01:14]}  Rad8 {[%clk 0:01:14]} 27. Qf3 {[%clk 0:01:08]}  Qxd4 {[%clk 0:01:08]} 28. Qxf7+ {[%clk 0:01:08]}  Kh8 {[%clk 0:01:08]} 29. Rae1 {[%clk 0:01:02]}  Qxe5 {[%clk 0:01:02]} 30. Qxb7 {[%clk 0:00:58]}  e2 {[%clk 0:00:49]} 31. Rg1 {[%clk 0:00:57]}  Rb8 {[%clk 0:00:38]} 32. Qa6 {[%clk 0:00:44]}  Qxb5 {[%clk 0:00:37]} 33. Qxb5 {[%clk 0:00:28]}  Rxb5 {[%clk 0:00:38]} 34. Bc6 {[%clk 0:00:28]}  Be4+ {[%clk 0:00:36]} 35. Bxe4 {[%clk 0:00:28]}  Rxe4 {[%clk 0:00:36]} 36. Rg2 {[%clk 0:00:28]}  Rb2 {[%clk 0:00:33]} 37. Rf2 {[%clk 0:00:28]}  Re3 {[%clk 0:00:30]} 38. Kg2 {[%clk 0:00:28]}  Kh7 {[%clk 0:00:28]} 39. Rf3 {[%clk 0:00:25]}  Rxf3 {[%clk 0:00:19]} 40. Kxf3 {[%clk 0:00:26]}  Rb3+ {[%clk 0:00:20]} 41. Kg2 {[%clk 0:00:17]}  Rxa3 {[%clk 0:00:20]} 42. Rxe2 {[%clk 0:00:17]}  Rb3 {[%clk 0:00:20]} 43. Re7 {[%clk 0:00:15]}  a3 {[%clk 0:00:21]} 44. Ra7 {[%clk 0:00:15]}  Rb2+ {[%clk 0:00:16]} 45. Kh3 {[%clk 0:00:15]}  a2 {[%clk 0:00:17]} 46. g4 {[%clk 0:00:16]}  Kg6 {[%clk 0:00:13]} 47. Kg3 {[%clk 0:00:15]}  Kf6 {[%clk 0:00:13]} 48. Ra5 {[%clk 0:00:12]}  g5 {[%clk 0:00:12]} 49. h4 {[%clk 0:00:10]}  Ke6 {[%clk 0:00:12]} 50. hxg5 {[%clk 0:00:07]}  hxg5 {[%clk 0:00:13]} 51. Kf3 {[%clk 0:00:08]}  Kd6 {[%clk 0:00:12]} 52. Ke4 {[%clk 0:00:08]}  Rf2 {[%clk 0:00:11]} 53. Ke3 {[%clk 0:00:06]}  Rc2 {[%clk 0:00:08]} 54. Ke4 {[%clk 0:00:06]}  Kc6 {[%clk 0:00:08]} 55. Ra8 {[%clk 0:00:05]}  Kb7 {[%clk 0:00:06]} 56. Ra3 {[%clk 0:00:04]}  Kb6 {[%clk 0:00:06]} 57. Kd3 {[%clk 0:00:02]}  Rg2 {[%clk 0:00:06]} 58. Ra8 {[%clk 0:00:02]}  Kc5 {[%clk 0:00:03]} 59. Kc3 {[%clk 0:00:02]}  Rg3+ {[%clk 0:00:02]} 60. Kb2 {[%clk 0:00:02]}  Rxg4 {[%clk 0:00:02]} 61. Kxa2 {[%clk 0:00:02]}  Kb4 {[%clk 0:00:02]} 62. Kb2 {[%clk 0:00:02]}  Rg2+ {[%clk 0:00:02]} 63. Kc1 {[%clk 0:00:03]}  Kc3 {[%clk 0:00:02]} 64. Kd1 {[%clk 0:00:03]}  Kd3 {[%clk 0:00:03]} 65. Ke1 {[%clk 0:00:04]}  Ke3 {[%clk 0:00:03]} 66. Kf1 {[%clk 0:00:04]}  Rc2 {[%clk 0:00:03]} 67. Ra3+ {[%clk 0:00:04]}  Kf4 {[%clk 0:00:03]} 68. Rb3 {[%clk 0:00:04]}  Rc1+ {[%clk 0:00:03]} 69. Kf2 {[%clk 0:00:05]}  Rc2+ {[%clk 0:00:04]} 70. Kf1 {[%clk 0:00:05]}  Rc4 {[%clk 0:00:05]} 71. Kf2 {[%clk 0:00:05]}  g4 {[%clk 0:00:05]} 72. Kg2 {[%clk 0:00:05]}  Rc2+ {[%clk 0:00:05]} 73. Kg1 {[%clk 0:00:06]}  Rd2 {[%clk 0:00:06]} 74. Rc3 {[%clk 0:00:06]}  Re2 {[%clk 0:00:06]} 75. Rb3 {[%clk 0:00:06]}  g3 {[%clk 0:00:06]} 76. Rb8 {[%clk 0:00:05]}  Kf3 {[%clk 0:00:06]} 77. Rf8+ {[%clk 0:00:05]}  Kg4 {[%clk 0:00:06]} 78. Rg8+ {[%clk 0:00:06]}  Kf3 {[%clk 0:00:07]} 79. Rf8+ {[%clk 0:00:06]}  Kg4 {[%clk 0:00:07]} 80. Rg8+ {[%clk 0:00:07]}  Kf3 {[%clk 0:00:08]} 81. Rf8+ {[%clk 0:00:07]} 1/2-1/2


[Site "https://www.chess.com"]

[Event "Titled Tuesday Blitz August 31 2021"]
[White "Obolentseva, Alexandra"]
[Black "Mortazavi, Ali"]
[WhiteFideId "24153648"]
[BlackFideId "401323"]
[WhiteElo "2113"]
[BlackElo "2339"]
[Result "0-1"]
[Round "05"]
[TimeControl "180+1"]
[Date "2021.08.31"]
[WhiteClock "0:00:21"]
[BlackClock "0:00:16"]

1. d4 {[%clk 0:03:00]}  Nf6 {[%clk 0:02:59]} 2. c4 {[%clk 0:03:00]}  g6 {[%clk 0:03:00]} 3. Nc3 {[%clk 0:02:58]}  Bg7 {[%clk 0:03:00]} 4. Nf3 {[%clk 0:02:56]}  O-O {[%clk 0:03:01]} 5. e4 {[%clk 0:02:55]}  d6 {[%clk 0:03:01]} 6. Be2 {[%clk 0:02:56]}  Bg4 {[%clk 0:03:00]} 7. O-O {[%clk 0:02:56]}  Nbd7 {[%clk 0:02:59]} 8. Be3 {[%clk 0:02:49]}  e5 {[%clk 0:02:59]} 9. d5 {[%clk 0:02:46]}  a5 {[%clk 0:03:00]} 10. b3 {[%clk 0:02:43]}  Nh5 {[%clk 0:02:57]} 11. Rc1 {[%clk 0:02:40]}  Nf4 {[%clk 0:02:56]} 12. Bxf4 {[%clk 0:02:38]}  exf4 {[%clk 0:02:56]} 13. h3 {[%clk 0:02:37]}  Bxf3 {[%clk 0:02:54]} 14. Bxf3 {[%clk 0:02:38]}  Ne5 {[%clk 0:02:51]} 15. Be2 {[%clk 0:02:37]}  b6 {[%clk 0:02:36]} 16. f3 {[%clk 0:02:32]}  h5 {[%clk 0:02:30]} 17. Nb5 {[%clk 0:02:28]}  Nd7 {[%clk 0:02:14]} 18. Nd4 {[%clk 0:02:27]}  Bxd4+ {[%clk 0:02:14]} 19. Qxd4 {[%clk 0:02:28]}  Re8 {[%clk 0:02:09]} 20. a3 {[%clk 0:02:26]}  Re5 {[%clk 0:02:05]} 21. b4 {[%clk 0:02:20]}  Rg5 {[%clk 0:02:04]} 22. Qd2 {[%clk 0:02:13]}  Qf6 {[%clk 0:02:03]} 23. Rfd1 {[%clk 0:02:08]}  Rg3 {[%clk 0:02:03]} 24. Kh2 {[%clk 0:02:03]}  axb4 {[%clk 0:01:47]} 25. axb4 {[%clk 0:02:01]}  Ra3 {[%clk 0:01:45]} 26. Bf1 {[%clk 0:01:48]}  Kh7 {[%clk 0:01:36]} 27. Rc2 {[%clk 0:01:36]}  Qg5 {[%clk 0:01:30]} 28. Qf2 {[%clk 0:01:33]}  Ne5 {[%clk 0:01:28]} 29. Be2 {[%clk 0:01:23]}  Qh4 {[%clk 0:01:27]} 30. Rf1 {[%clk 0:01:18]}  g5 {[%clk 0:01:18]} 31. Kh1 {[%clk 0:01:14]}  g4 {[%clk 0:01:01]} 32. Qxg3 {[%clk 0:00:39]}  Qxg3 {[%clk 0:00:50]} 33. fxg4 {[%clk 0:00:38]}  f3 {[%clk 0:00:38]} 34. gxf3 {[%clk 0:00:34]}  Qxh3+ {[%clk 0:00:36]} 35. Kg1 {[%clk 0:00:33]}  Ng6 {[%clk 0:00:27]} 36. gxh5 {[%clk 0:00:28]}  Qg3+ {[%clk 0:00:26]} 37. Kh1 {[%clk 0:00:28]}  Qh3+ {[%clk 0:00:21]} 38. Kg1 {[%clk 0:00:25]}  Nh4 {[%clk 0:00:20]} 39. Kf2 {[%clk 0:00:24]}  Qg2+ {[%clk 0:00:16]} 40. Ke1 {[%clk 0:00:21]}  Ra1+ {[%clk 0:00:16]} 0-1


[Site "https://www.chess.com"]

[Event "Titled Tuesday Blitz August 31 2021"]
[White "Papasimakopoulos, Alexandros"]
[Black "Odegov, Artem"]
[WhiteFideId "4244125"]
[BlackFideId "34183644"]
[WhiteElo "2352"]
[BlackElo "2257"]
[Result "1-0"]
[Round "05"]
[TimeControl "180+1"]
[Date "2021.08.31"]
[WhiteClock "0:00:17"]
[BlackClock "0:00:01"]

1. d4 {[%clk 0:02:53]}  Nf6 {[%clk 0:02:59]} 2. c4 {[%clk 0:02:51]}  c5 {[%clk 0:02:59]} 3. d5 {[%clk 0:02:51]}  e6 {[%clk 0:02:59]} 4. Nc3 {[%clk 0:02:51]}  exd5 {[%clk 0:02:54]} 5. cxd5 {[%clk 0:02:52]}  d6 {[%clk 0:02:55]} 6. Nf3 {[%clk 0:02:52]}  g6 {[%clk 0:02:55]} 7. Bf4 {[%clk 0:02:51]}  Bg7 {[%clk 0:02:55]} 8. Qa4+ {[%clk 0:02:50]}  Bd7 {[%clk 0:02:51]} 9. Qb3 {[%clk 0:02:50]}  O-O {[%clk 0:02:47]} 10. Bxd6 {[%clk 0:02:43]}  Re8 {[%clk 0:02:46]} 11. Bxc5 {[%clk 0:02:38]}  Na6 {[%clk 0:02:40]} 12. Bd4 {[%clk 0:02:38]}  Nc7 {[%clk 0:02:38]} 13. e3 {[%clk 0:02:35]}  b5 {[%clk 0:02:26]} 14. Be2 {[%clk 0:02:27]}  b4 {[%clk 0:02:14]} 15. Qxb4 {[%clk 0:02:23]}  Ncxd5 {[%clk 0:02:13]} 16. Nxd5 {[%clk 0:02:23]}  Nxd5 {[%clk 0:02:13]} 17. Qd2 {[%clk 0:02:22]}  Bf8 {[%clk 0:02:10]} 18. O-O {[%clk 0:02:10]}  Qe7 {[%clk 0:02:00]} 19. Rfc1 {[%clk 0:01:55]}  Rad8 {[%clk 0:01:59]} 20. Bxa7 {[%clk 0:01:50]}  Bf5 {[%clk 0:01:35]} 21. Bd4 {[%clk 0:01:49]}  Bh6 {[%clk 0:01:26]} 22. a4 {[%clk 0:01:41]}  Nxe3 {[%clk 0:01:16]} 23. Re1 {[%clk 0:00:54]}  Ng4 {[%clk 0:01:03]} 24. Qc3 {[%clk 0:00:45]}  Rc8 {[%clk 0:00:54]} 25. Bc4 {[%clk 0:00:37]}  Qb7 {[%clk 0:00:54]} 26. Rxe8+ {[%clk 0:00:36]}  Rxe8 {[%clk 0:00:52]} 27. a5 {[%clk 0:00:36]}  Be4 {[%clk 0:00:46]} 28. a6 {[%clk 0:00:33]}  Qa8 {[%clk 0:00:46]} 29. Ne1 {[%clk 0:00:28]}  Rc8 {[%clk 0:00:39]} 30. f3 {[%clk 0:00:21]}  Qb8 {[%clk 0:00:14]} 31. g3 {[%clk 0:00:16]}  Bd5 {[%clk 0:00:12]} 32. a7 {[%clk 0:00:17]}  Qa8 {[%clk 0:00:01]} 33. Bxd5 {[%clk 0:00:17]} 1-0


[Site "https://www.chess.com"]

[Event "Titled Tuesday Blitz August 31 2021"]
[White "Peng, David Yu"]
[Black "Semcesen, Daniel"]
[WhiteFideId "2605376"]
[BlackFideId "1706993"]
[WhiteElo "2166"]
[BlackElo "2505"]
[Result "1/2-1/2"]
[Round "05"]
[TimeControl "180+1"]
[Date "2021.08.31"]
[WhiteClock "0:00:06"]
[BlackClock "0:00:09"]

1. e4 {[%clk 0:02:59]}  e6 {[%clk 0:02:59]} 2. d3 {[%clk 0:02:52]}  d5 {[%clk 0:02:55]} 3. Qe2 {[%clk 0:02:52]}  Nf6 {[%clk 0:02:50]} 4. e5 {[%clk 0:02:44]}  Nfd7 {[%clk 0:02:49]} 5. Nf3 {[%clk 0:02:44]}  c5 {[%clk 0:02:48]} 6. g3 {[%clk 0:02:43]}  Nc6 {[%clk 0:02:48]} 7. h4 {[%clk 0:02:39]}  b6 {[%clk 0:02:34]} 8. Bf4 {[%clk 0:02:29]}  Bb7 {[%clk 0:02:33]} 9. Bh3 {[%clk 0:02:26]}  Be7 {[%clk 0:02:24]} 10. Nbd2 {[%clk 0:02:24]}  Qc7 {[%clk 0:02:19]} 11. O-O {[%clk 0:02:17]}  h6 {[%clk 0:02:19]} 12. h5 {[%clk 0:02:09]}  O-O-O {[%clk 0:02:16]} 13. c4 {[%clk 0:02:08]}  Na5 {[%clk 0:01:46]} 14. cxd5 {[%clk 0:01:59]}  Bxd5 {[%clk 0:01:43]} 15. b4 {[%clk 0:01:55]}  Nb7 {[%clk 0:01:29]} 16. a4 {[%clk 0:01:50]}  Kb8 {[%clk 0:01:28]} 17. a5 {[%clk 0:01:49]}  cxb4 {[%clk 0:01:27]} 18. axb6 {[%clk 0:01:49]}  Nxb6 {[%clk 0:01:20]} 19. Rfc1 {[%clk 0:01:40]}  Qd7 {[%clk 0:01:20]} 20. Be3 {[%clk 0:01:33]}  Rc8 {[%clk 0:01:16]} 21. Nc4 {[%clk 0:01:30]}  Bc5 {[%clk 0:00:59]} 22. Nxb6 {[%clk 0:01:23]}  Bxb6 {[%clk 0:00:54]} 23. Bxb6 {[%clk 0:01:19]}  Rxc1+ {[%clk 0:00:50]} 24. Rxc1 {[%clk 0:01:18]}  axb6 {[%clk 0:00:51]} 25. Bg2 {[%clk 0:01:14]}  Rc8 {[%clk 0:00:49]} 26. Ra1 {[%clk 0:01:14]}  b3 {[%clk 0:00:43]} 27. d4 {[%clk 0:01:13]}  Bc4 {[%clk 0:00:42]} 28. Qb2 {[%clk 0:01:08]}  Qb5 {[%clk 0:00:37]} 29. Qa3 {[%clk 0:01:06]}  Na5 {[%clk 0:00:36]} 30. Nd2 {[%clk 0:01:02]}  Bd5 {[%clk 0:00:32]} 31. Qd6+ {[%clk 0:00:54]}  Kb7 {[%clk 0:00:32]} 32. Rb1 {[%clk 0:00:47]}  Bxg2 {[%clk 0:00:30]} 33. Kxg2 {[%clk 0:00:47]}  Rc2 {[%clk 0:00:22]} 34. Qe7+ {[%clk 0:00:42]}  Ka6 {[%clk 0:00:22]} 35. Nxb3 {[%clk 0:00:38]}  Nxb3 {[%clk 0:00:20]} 36. Qa3+ {[%clk 0:00:32]}  Na5 {[%clk 0:00:20]} 37. Rxb5 {[%clk 0:00:31]}  Kxb5 {[%clk 0:00:18]} 38. Qd3+ {[%clk 0:00:29]}  Rc4 {[%clk 0:00:18]} 39. d5 {[%clk 0:00:28]}  exd5 {[%clk 0:00:17]} 40. Qxd5+ {[%clk 0:00:29]}  Rc5 {[%clk 0:00:18]} 41. Qd7+ {[%clk 0:00:29]}  Nc6 {[%clk 0:00:17]} 42. f4 {[%clk 0:00:27]}  Kc4 {[%clk 0:00:14]} 43. Qxf7+ {[%clk 0:00:26]}  Kc3 {[%clk 0:00:14]} 44. e6 {[%clk 0:00:24]}  b5 {[%clk 0:00:14]} 45. Qxg7+ {[%clk 0:00:24]}  Kc2 {[%clk 0:00:13]} 46. e7 {[%clk 0:00:24]}  Nxe7 {[%clk 0:00:13]} 47. Qxe7 {[%clk 0:00:25]}  Rc4 {[%clk 0:00:12]} 48. Qd6 {[%clk 0:00:20]}  b4 {[%clk 0:00:12]} 49. Qxh6 {[%clk 0:00:20]}  b3 {[%clk 0:00:12]} 50. Qg6+ {[%clk 0:00:20]}  Kc1 {[%clk 0:00:12]} 51. h6 {[%clk 0:00:14]}  b2 {[%clk 0:00:11]} 52. h7 {[%clk 0:00:10]}  Rc2+ {[%clk 0:00:11]} 53. Kf3 {[%clk 0:00:09]}  b1=Q {[%clk 0:00:11]} 54. Kg4 {[%clk 0:00:08]}  Rh2 {[%clk 0:00:08]} 55. Qc6+ {[%clk 0:00:07]}  Qc2 {[%clk 0:00:08]} 56. Qxc2+ {[%clk 0:00:06]}  Kxc2 {[%clk 0:00:08]} 57. Kf5 {[%clk 0:00:06]}  Rxh7 {[%clk 0:00:08]} 58. g4 {[%clk 0:00:07]}  Kd3 {[%clk 0:00:08]} 59. g5 {[%clk 0:00:06]}  Ke3 {[%clk 0:00:09]} 60. g6 {[%clk 0:00:06]}  Rg7 {[%clk 0:00:09]} 61. Kf6 {[%clk 0:00:06]}  Rxg6+ {[%clk 0:00:09]} 62. Kxg6 {[%clk 0:00:06]}  Kxf4 {[%clk 0:00:09]} 1/2-1/2


[Site "https://www.chess.com"]

[Event "Titled Tuesday Blitz August 31 2021"]
[White "Pert, Richard G"]
[Black "Gubanov, Oleg"]
[WhiteFideId "404748"]
[BlackFideId "14115115"]
[WhiteElo "2441"]
[BlackElo "2138"]
[Result "1-0"]
[Round "05"]
[TimeControl "180+1"]
[Date "2021.08.31"]
[WhiteClock "0:01:08"]
[BlackClock "0:01:13"]

1. d4 {[%clk 0:03:00]}  b5 {[%clk 0:02:57]} 2. Nf3 {[%clk 0:02:57]}  Bb7 {[%clk 0:02:55]} 3. Bg5 {[%clk 0:02:57]}  h6 {[%clk 0:02:41]} 4. Bh4 {[%clk 0:02:57]}  c5 {[%clk 0:02:41]} 5. d5 {[%clk 0:02:52]}  Qa5+ {[%clk 0:02:36]} 6. Nc3 {[%clk 0:02:41]}  b4 {[%clk 0:02:27]} 7. Ne4 {[%clk 0:02:41]}  f5 {[%clk 0:02:07]} 8. Ne5 {[%clk 0:02:19]}  fxe4 {[%clk 0:01:51]} 9. e3 {[%clk 0:02:19]}  g5 {[%clk 0:01:47]} 10. Qh5+ {[%clk 0:02:13]}  Kd8 {[%clk 0:01:46]} 11. Nf7+ {[%clk 0:02:04]}  Kc7 {[%clk 0:01:26]} 12. Bg3+ {[%clk 0:02:01]}  d6 {[%clk 0:01:25]} 13. Nxh8 {[%clk 0:02:00]}  Nf6 {[%clk 0:01:26]} 14. Qf7 {[%clk 0:01:55]}  Na6 {[%clk 0:01:26]} 15. Bc4 {[%clk 0:01:37]}  b3+ {[%clk 0:01:17]} 16. c3 {[%clk 0:01:37]}  Nb4 {[%clk 0:01:17]} 17. O-O {[%clk 0:01:13]}  Nbxd5 {[%clk 0:01:16]} 18. axb3 {[%clk 0:01:09]}  Qb6 {[%clk 0:01:13]} 19. Ng6 {[%clk 0:01:08]} 1-0


[Site "https://www.chess.com"]